fUST/lending_fUST_20251114
["ID","MTS","AMOUNT","RATE_DAILY","PERIOD"]
[393928142,1763099432372,-162.08989596,0.00027504,2]
[393928143,1763099432382,-1202.6452623,0.00027604,2]
[393928144,1763099432392,-177.0,0.00027654,2]
[393928145,1763099432402,-1632.1805336,0.00028492,2]
[393928146,1763099432414,-1200.0,0.0002857,2]
[393928147,1763099432424,-4069.1629496,0.000286,2]
[393928148,1763099432434,-300.0,0.00028652,2]
[393928149,1763099432444,-819.0,0.00028652,2]
[393928150,1763099432453,-11553.09910014,0.00028652,2]
[393928151,1763099432465,-701.71191315,0.00028652,2]
[393928162,1763099436628,5000.0,0.00025206,2]
[393928175,1763099438350,-500.0,0.00028651,2]
[393928176,1763099438362,-500.0,0.00028651,2]
[393928177,1763099438373,-492.79584079,0.00028651,2]
[393928178,1763099438384,-2710.46295483,0.00028652,2]
[393928179,1763099438578,-455.18249544,0.00028652,2]
[393928180,1763099438639,-2172.22358985,0.00028652,2]
[393928181,1763099438651,-1205.24441864,0.00028652,2]
[393928182,1763099438663,-31202.07552795,0.00028652,2]
[393928183,1763099438674,-587.9,0.00028653,10]
[393928184,1763099438683,-5221.52522722,0.0002866,2]
[393928185,1763099438693,-999.30048966,0.00028662,2]
[393928186,1763099438702,-231.46151023,0.00028662,2]
[393928187,1763099438711,-493.08,0.00028662,3]
[393928188,1763099438721,-62658.3027266,0.00028663,2]
[393928189,1763099438730,-168.0,0.00028667,2]
[393928190,1763099438740,-999.70008997,0.00028669,2]
[393928191,1763099438749,-500.0,0.00028672,2]
[393928192,1763099438759,-500.0,0.00028672,2]
[393928193,1763099438769,-500.0,0.00028672,2]
[393928194,1763099438778,-500.0,0.00028672,2]
[393928195,1763099438788,-500.0,0.00028672,2]
[393928196,1763099438797,-500.0,0.00028672,2]
[393928197,1763099438807,-500.0,0.00028672,2]
[393928198,1763099438815,-500.0,0.00028672,2]
[393928199,1763099438824,-500.0,0.00028672,2]
[393928200,1763099438834,-500.0,0.00028672,2]
[393928201,1763099438843,-500.0,0.00028672,2]
[393928202,1763099438852,-500.0,0.00028672,2]
[393928203,1763099438863,-500.0,0.00028672,2]
[393928204,1763099438872,-500.0,0.00028672,2]
[393928205,1763099438882,-500.0,0.00028672,2]
[393928206,1763099438892,-500.0,0.00028672,2]
[393928207,1763099438901,-429.68068015,0.00028672,2]
[393928208,1763099438911,-1000.0,0.00028672,2]
[393928209,1763099438924,-1000.0,0.00028672,2]
[393928210,1763099438934,-1000.0,0.00028672,2]
[393928211,1763099438944,-1000.0,0.00028672,2]
[393928212,1763099438954,-1000.0,0.00028672,2]
[393928213,1763099438964,-1000.0,0.00028672,2]
[393928214,1763099438974,-1000.0,0.00028672,2]
[393928215,1763099438984,-1000.0,0.00028672,2]
[393928216,1763099438994,-1000.0,0.00028672,2]
[393928217,1763099439004,-1000.0,0.00028672,2]
[393928218,1763099439014,-1000.0,0.00028672,2]
[393928219,1763099439024,-1000.0,0.00028672,2]
[393928220,1763099439038,-1000.0,0.00028672,2]
[393928221,1763099439049,-1000.0,0.00028672,2]
[393928222,1763099439059,-1000.0,0.00028672,2]
[393928223,1763099439068,-1000.0,0.00028672,2]
[393928224,1763099439079,-1000.0,0.00028672,2]
[393928225,1763099439088,-1000.0,0.00028672,2]
[393928226,1763099439098,-1000.0,0.00028672,2]
[393928227,1763099439108,-1000.0,0.00028672,2]
[393928228,1763099439119,-1000.0,0.00028672,2]
[393928229,1763099439129,-900.75178081,0.00028672,2]
[393928230,1763099439139,-506.7958722,0.00028673,5]
[393928231,1763099439149,-186.29503127,0.00028673,5]
[393928232,1763099439160,-500.0,0.00028673,5]
[393928233,1763099439172,-348.45056487,0.00028673,5]
[393928234,1763099439182,-500.0,0.00028673,5]
[393928235,1763099439192,-500.0,0.00028673,5]
[393928236,1763099439202,-59404.61064059,0.00028673,2]
[393928237,1763099439215,-3037.6040217,0.00028673,2]
[393928238,1763099439227,-4675.71095749,0.00028673,2]
[393928239,1763099439238,-744.12454368,0.00028673,2]
[393928240,1763099439250,-2322.27181308,0.00028673,2]
[393928241,1763099439262,-1018.95959998,0.00028673,2]
[393928242,1763099439273,-16420.54254362,0.00028673,2]
[393928243,1763099439284,-31026.28639901,0.00028673,2]
[393928259,1763099440586,-3e-08,0.00028663,10]
[393928260,1763099440602,-1018.10999997,0.00028663,10]
[393928261,1763099440611,-120264.0133672,0.00028673,2]
[393928318,1763099443697,-15719.55597667,0.00028673,2]
[393928319,1763099443708,-11038.7107,0.00028673,2]
[393928320,1763099443718,-4381.53923045,0.00028673,2]
[393928321,1763099443729,-1979.9,0.00028673,2]
[393928322,1763099443741,-2253.92377803,0.00028673,2]
[393928323,1763099443782,-272.83182917,0.00028673,2]
[393928330,1763099446896,-1828.9342412,0.00028673,2]
[393928331,1763099446907,-5244.1815244,0.00028673,2]
[393928332,1763099446918,-1411.95357189,0.00028673,2]
[393928333,1763099459593,3112.06648977,0.00025206,2]
[393928334,1763099459618,1887.93351023,0.00025206,2]
[393928335,1763099474900,249.7197216,0.00025206,2]
[393928336,1763099482664,5000.0,0.00025206,2]
[393928337,1763099497876,206.72415513,0.00025206,2]
[393928338,1763099505854,2655.63261304,0.00025206,2]
[393928339,1763099505876,2344.36738696,0.00025206,2]
[393928340,1763099517317,160.0,0.0003288,120]
[393928341,1763099558154,431.952228,0.00039927,20]
[393928357,1763100085230,-150.0,0.0002543,2]
[393928358,1763100085255,-231.5096781,0.00025711,2]
[393928359,1763100126283,474.28334248,0.00039931,30]
[393928362,1763100245344,-1409.8827096,0.0002599,2]
[393928363,1763100245419,-273.30735268,0.00026003,2]
[393928364,1763100245472,-905.04038138,0.00026103,2]
[393928365,1763100245526,-1167.69742199,0.0002633,2]
[393928366,1763100251471,-2488.1542687,0.0002633,2]
[393928367,1763100251503,-300.0,0.00026821,2]
[393928368,1763100251535,-767.84977191,0.00026822,2]
[393928369,1763100254520,-2888.00191878,0.00026822,2]
[393928370,1763100254551,-839.29946865,0.00026871,2]
[393928374,1763100296851,300.0,0.0003288,120]
[393928376,1763100345292,500.0,0.00039931,20]
[393928377,1763100345534,500.0,0.00039931,20]
[393928378,1763100345780,500.0,0.00039931,20]
[393928379,1763100346368,500.0,0.00039931,20]
[393928380,1763100346651,500.0,0.00039931,20]
[393928381,1763100346905,582.30125802,0.00039931,20]
[393928382,1763100355538,-150.0,0.0002556,2]
[393928383,1763100369327,-327.52870516,0.00025915,30]
[393928384,1763100370925,-286.82005114,0.00025915,30]
[393928385,1763100399394,-233.27990097,0.00025915,30]
[393928386,1763100402029,-152.37134273,0.00025915,30]
[393928387,1763100402051,-49.33106214,0.00025918,2]
[393928388,1763100404721,-154.49965307,0.00025918,2]
[393928389,1763100407543,-730.02700205,0.00025918,2]
[393928390,1763100411336,-171.30858967,0.00025918,2]
[393928391,1763100416685,-154.90725084,0.00025918,2]
[393928392,1763100418849,-167.98166249,0.00025918,2]
[393928393,1763100420412,-264.00887808,0.00025918,2]
[393928394,1763100458900,468.18188412,0.00025716,2]
[393928399,1763100495963,5000.0,0.00025716,2]
[393928400,1763100503810,5000.0,0.00025206,2]
[393928401,1763100519052,5000.0,0.00025206,2]
[393928402,1763100527208,1828.41760589,0.00025206,2]
[393928403,1763100542398,5000.0,0.00025206,2]
[393928404,1763100564786,5000.0,0.00025206,2]
[393928405,1763100587043,5000.0,0.00025206,2]
[393928406,1763100609522,5000.0,0.00025206,2]
[393928407,1763100611506,466.5,0.0003288,120]
[393928424,1763100632485,-956.23404994,0.00025918,2]
[393928426,1763100632496,-2607.10072562,0.00025918,2]
[393928427,1763100632507,-1356.0,0.00025918,2]
[393928428,1763100632516,-775.89663891,0.00026103,2]
[393928429,1763100632526,-1200.0,0.00026848,2]
[393928430,1763100632536,-300.0,0.00026858,2]
[393928431,1763100632546,-3279.7942602,0.00026859,2]
[393928432,1763100632555,-1200.0,0.00026886,2]
[393928433,1763100632564,-3920.50688108,0.00026888,2]
[393928434,1763100632574,-848.42,0.00026949,10]
[393928435,1763100632584,-500.0,0.0002695,2]
[393928436,1763100632594,-500.0,0.0002695,2]
[393928437,1763100632603,-500.0,0.0002695,2]
[393928438,1763100632613,-327.45643074,0.0002695,2]
[393928439,1763100632623,-500.0,0.0002695,2]
[393928440,1763100632632,-500.0,0.0002695,2]
[393928441,1763100632642,-500.0,0.0002695,2]
[393928442,1763100632651,-203.22701095,0.0002695,2]
[393928445,1763100632754,-48125.65759735,0.00026951,2]
[393928447,1763100632768,-1827.53382953,0.00026951,2]
[393928448,1763100632778,-408.7875568,0.00026958,2]
[393928449,1763100632787,-275.73455155,0.00026958,2]
[393928450,1763100632796,-162.02305716,0.00026958,2]
[393928451,1763100632805,-185.10355605,0.00026958,2]
[393928452,1763100632814,-151.0,0.00026971,2]
[393928453,1763100632823,-204.8266,0.00026971,2]
[393928454,1763100632833,-151.0,0.00026971,2]
[393928455,1763100632842,-500.0,0.00026971,2]
[393928456,1763100632851,-151.0,0.00026971,2]
[393928457,1763100632861,-151.0,0.00026971,2]
[393928458,1763100632871,-151.0,0.00026971,2]
[393928459,1763100632880,-151.0,0.00026971,2]
[393928460,1763100632890,-500.0,0.00026972,2]
[393928461,1763100632899,-500.0,0.00026972,2]
[393928462,1763100632908,-615.1766992,0.00026972,2]
[393928463,1763100632918,-487.33888497,0.00026973,2]
[393928464,1763100632928,-500.0,0.00026973,2]
[393928465,1763100632937,-500.0,0.00026973,2]
[393928466,1763100632946,-500.0,0.00026973,2]
[393928467,1763100632956,-500.0,0.00026973,2]
[393928468,1763100632968,-500.0,0.00026973,2]
[393928469,1763100632977,-308.84687146,0.00026973,2]
[393928470,1763100632987,-504.31299622,0.00026973,2]
[393928471,1763100632996,-500.0,0.00026973,2]
[393928472,1763100633006,-500.0,0.00026973,2]
[393928473,1763100633015,-500.0,0.00026973,2]
[393928474,1763100633024,-500.0,0.00026973,2]
[393928475,1763100633036,-500.0,0.00026973,2]
[393928476,1763100633045,-12792.7368067,0.00026976,2]
[393928477,1763100633054,-500.0,0.00026977,2]
[393928478,1763100633063,-1827.53382953,0.00026978,2]
[393928479,1763100633072,-500.0,0.00026984,2]
[393928480,1763100633082,-501.8947377,0.00026984,2]
[393928481,1763100633098,-49786.99517515,0.00026986,2]
[393928482,1763100633109,-336.54301891,0.00026986,2]
[393928483,1763100633175,-500.0,0.0002695,2]
[393928484,1763100633184,-500.0,0.0002695,2]
[393928485,1763100633193,-500.0,0.0002695,2]
[393928486,1763100633203,-500.0,0.0002695,2]
[393928487,1763100633212,-500.0,0.0002695,2]
[393928488,1763100633221,-500.0,0.0002695,2]
[393928489,1763100633230,-500.0,0.0002695,2]
[393928490,1763100633239,-500.0,0.0002695,2]
[393928491,1763100633248,-500.0,0.0002695,2]
[393928492,1763100633258,-500.0,0.0002695,2]
[393928493,1763100633267,-500.0,0.0002695,2]
[393928494,1763100633276,-500.0,0.0002695,2]
[393928495,1763100633290,-561.71365371,0.0002695,2]
[393928496,1763100633299,-500.0,0.0002695,2]
[393928497,1763100633309,-70804.79931512,0.00026986,2]
[393928498,1763100633320,-8614.14654064,0.00026986,2]
[393928499,1763100633335,-500.0,0.0002695,2]
[393928500,1763100633345,-614.72696981,0.00026986,2]
[393928501,1763100633356,-26970.73582437,0.00026986,2]
[393928502,1763100633367,-3444.74211195,0.00026986,2]
[393928503,1763100633394,-500.0,0.0002695,2]
[393928504,1763100633403,-500.0,0.0002695,2]
[393928505,1763100633412,-500.0,0.0002695,2]
[393928506,1763100633422,-500.0,0.0002695,2]
[393928507,1763100633432,-14451.52256059,0.00026986,2]
[393928508,1763100633452,-314.5842607,0.0002695,2]
[393928512,1763100638417,-185.4157393,0.0002695,2]
[393928513,1763100638427,-500.0,0.0002695,2]
[393928514,1763100638440,-500.0,0.0002695,2]
[393928515,1763100638451,-75.9342607,0.0002695,2]
[393928516,1763100638475,-424.0657393,0.0002695,2]
[393928517,1763100638487,-500.0,0.0002695,2]
[393928518,1763100638499,-600.0,0.0002695,2]
[393928519,1763100638510,-500.0,0.0002695,2]
[393928520,1763100638521,-500.0,0.0002695,2]
[393928522,1763100638532,-500.0,0.0002695,2]
[393928523,1763100638544,-455.544118,0.0002695,2]
[393928524,1763100638557,-44.455882,0.0002695,2]
[393928525,1763100638569,-500.0,0.0002695,2]
[393928526,1763100638580,-500.0,0.0002695,2]
[393928527,1763100638592,-500.0,0.0002695,2]
[393928528,1763100638604,-298.57503402,0.0002695,2]
[393928529,1763100638616,-53.91059326,0.0002695,2]
[393928530,1763100638630,-446.08940674,0.0002695,2]
[393928531,1763100638641,-246.99068852,0.0002695,2]
[393928532,1763100638652,-500.0,0.0002695,2]
[393928533,1763100638664,-500.0,0.0002695,2]
[393928534,1763100638674,-500.0,0.0002695,2]
[393928535,1763100638686,-500.0,0.0002695,2]
[393928536,1763100638697,-500.0,0.0002695,2]
[393928537,1763100638707,-73.07415781,0.0002695,2]
[393928539,1763100640730,-3e-08,0.0002695,2]
[393928585,1763100643657,-426.92584216,0.0002695,2]
[393928586,1763100643669,-59.82915784,0.0002695,2]
[393928587,1763100643715,-440.17084216,0.0002695,2]
[393928588,1763100643725,-500.0,0.0002695,2]
[393928589,1763100643735,-500.0,0.0002695,2]
[393928590,1763100643746,-500.0,0.0002695,2]
[393928591,1763100643756,-500.0,0.0002695,2]
[393928592,1763100643766,-500.0,0.0002695,2]
[393928593,1763100643776,-500.0,0.0002695,2]
[393928594,1763100643786,-500.0,0.0002695,2]
[393928595,1763100643797,-500.0,0.0002695,2]
[393928596,1763100643807,-500.0,0.0002695,2]
[393928597,1763100643818,-500.0,0.0002695,2]
[393928598,1763100643828,-500.0,0.0002695,2]
[393928599,1763100643838,-500.0,0.0002695,2]
[393928600,1763100643848,-500.0,0.0002695,2]
[393928601,1763100643858,-500.0,0.0002695,2]
[393928602,1763100643868,-500.0,0.0002695,2]
[393928603,1763100643878,-500.0,0.0002695,2]
[393928604,1763100643888,-500.0,0.0002695,2]
[393928605,1763100643899,-527.61328916,0.0002695,2]
[393928606,1763100643909,-500.0,0.0002695,2]
[393928607,1763100643919,-500.0,0.0002695,2]
[393928608,1763100643929,-500.0,0.0002695,2]
[393928609,1763100643940,-500.0,0.0002695,2]
[393928610,1763100643950,-500.0,0.0002695,2]
[393928611,1763100643964,-500.0,0.0002695,2]
[393928612,1763100643975,-500.0,0.0002695,2]
[393928613,1763100643986,-500.0,0.0002695,2]
[393928614,1763100643996,-500.0,0.0002695,2]
[393928615,1763100644007,-500.0,0.0002695,2]
[393928616,1763100644018,-500.0,0.0002695,2]
[393928617,1763100644029,-500.0,0.0002695,2]
[393928618,1763100644042,-500.0,0.0002695,2]
[393928619,1763100644052,-707.02,0.00026976,10]
[393928620,1763100644173,-22896.26820749,0.00026986,2]
[393928621,1763100644198,-15015.42390756,0.00026986,2]
[393928635,1763100646673,-8035.74999984,0.00026986,2]
[393928636,1763100646957,-1801.77212347,0.00026986,2]
[393928638,1763100646971,-3316.63897699,0.00026986,2]
[393928726,1763100824230,5000.0,0.00025206,2]
[393928731,1763100837744,5000.0,0.00039919,68]
[393928736,1763100846999,5000.0,0.00025206,2]
[393928742,1763100855098,0.01,0.00025206,2]
[393928743,1763100855122,2469.30456793,0.00025206,2]
[393928754,1763100870393,5000.0,0.00025206,2]
[393928766,1763100892763,5000.0,0.00025206,2]
[393928770,1763100915807,5000.0,0.00025206,2]
[393928771,1763100938221,5000.0,0.00025206,2]
[393928773,1763100960696,5000.0,0.00025206,2]
[393928774,1763100983444,5000.0,0.00025206,2]
[393928778,1763101006298,5000.0,0.00025206,2]
[393928783,1763101028751,5000.0,0.00025206,2]
[393928784,1763101029364,-150.0,0.00025473,2]
[393928792,1763101051195,5000.0,0.00025206,2]
[393928794,1763101074299,2162.33741643,0.00025206,2]
[393928798,1763101194275,-576.24712489,0.0002564,2]
[393928799,1763101196374,-186.910702,0.0002564,2]
[393928800,1763101198311,-160.9749289,0.0002564,2]
[393928801,1763101200410,-200.12729724,0.0002564,2]
[393928802,1763101202624,-477.0,0.0002564,2]
[393928803,1763101204139,-488.57340011,0.0002564,2]
[393928804,1763101207422,-272.51982629,0.0002564,2]
[393928805,1763101209561,-247.61772679,0.0002564,2]
[393928806,1763101211131,-258.45115553,0.0002564,2]
[393928807,1763101211156,-7.52720812,0.0002564,2]
[393928809,1763101215354,-300.0,0.0002564,2]
[393928811,1763101219348,-300.0,0.0002564,2]
[393928818,1763101284294,-241.87,0.000256,20]
[393928822,1763101299985,-353.78099747,0.00025252,2]
[393928823,1763101303029,-150.0,0.00025229,2]
[393928824,1763101303052,-36.52357863,0.00025252,2]
[393928825,1763101305115,-163.87270276,0.00025252,2]
[393928826,1763101307107,-361.76456697,0.00025252,2]
[393928827,1763101308818,-251.35233804,0.00025252,2]
[393928828,1763101310691,-248.21039223,0.00025252,2]
[393928829,1763101312989,-200.0,0.00025252,2]
[393928830,1763101314964,-234.08594206,0.00025252,2]
[393928831,1763101318558,-300.0,0.00025252,2]
[393928832,1763101320759,234.08594206,0.00025206,2]
[393928833,1763101323231,-300.0,0.00025252,2]
[393928834,1763101326817,-593.67500594,0.00025252,2]
[393928835,1763101332268,-350.51844419,0.00025252,2]
[393928836,1763101334806,-262.0677224,0.00025252,2]
[393928849,1763101450732,-316.28238133,0.000255,2]
[393928850,1763101450763,-241.87,0.000256,7]
[393928851,1763101450794,-207.31,0.000256,2]
[393928852,1763101450825,-728.47279188,0.0002564,2]
[393928853,1763101450853,-222.18846757,0.0002574,2]
[393928854,1763101450882,-1903.49134844,0.00025777,2]
[393928855,1763101453571,-2760.78002156,0.00025777,2]
[393928856,1763101453599,-191.182948,0.00025805,2]
[393928857,1763101453628,-1200.0,0.00025939,2]
[393928858,1763101453657,-690.812284,0.0002594,2]
[393928859,1763101453687,-14.45949288,0.00026055,2]
[393928860,1763101459856,-285.54050712,0.00026055,2]
[393928861,1763101459885,-500.0,0.00026056,2]
[393928862,1763101459913,-580.84677537,0.00026056,2]
[393928863,1763101459942,-1076.59900633,0.00026103,2]
[393928864,1763101459970,-1458.18573167,0.00026289,2]
[393928866,1763101463191,-2197.66595902,0.00026289,2]
[393928884,1763101617251,333.67,0.00024749,30]
[393928887,1763101629884,-150.0,0.00025526,2]
[393928901,1763101701059,219.54185844,0.0002,2]
[393928902,1763101702982,853.68366912,0.00017,2]
[393928909,1763101738865,202.834918,0.00013699,2]
[393928910,1763101739105,202.834918,0.00020187,2]
[393928948,1763101831690,-678.9400238,0.00025469,2]
[393928949,1763101831700,-477.0,0.00025848,2]
[393928950,1763101831710,-1064.0,0.00025848,2]
[393928951,1763101831719,-25886.2873634,0.00025849,2]
[393928952,1763101831728,-500.0,0.00025873,2]
[393928953,1763101831737,-500.0,0.00025873,2]
[393928954,1763101831746,-500.0,0.00025873,2]
[393928955,1763101831756,-500.0,0.00025873,2]
[393928956,1763101831765,-500.0,0.00025873,2]
[393928957,1763101831774,-1025.2,0.00026,2]
[393928958,1763101831783,-3173.09210372,0.00026321,2]
[393928959,1763101831792,-538.54332799,0.00026421,2]
[393928960,1763101831801,-500.0,0.00026421,2]
[393928961,1763101831810,-835.35906938,0.00026421,2]
[393928962,1763101831820,-180.52,0.00026432,2]
[393928963,1763101831829,-7487.5767319,0.00026442,2]
[393928964,1763101831841,-1057.19177604,0.00026442,2]
[393928965,1763101831852,-1683.67098411,0.00026442,2]
[393928966,1763101831862,-500.0,0.00026473,2]
[393928967,1763101831875,-500.0,0.00026473,2]
[393928968,1763101831884,-2073.5008382,0.00026492,2]
[393928969,1763101831895,-1582.35085249,0.00026492,2]
[393928970,1763101831904,-202.834918,0.00026676,2]
[393928971,1763101831913,-3655.85169069,0.00026734,2]
[393928972,1763101831923,-1188.23082101,0.00026888,2]
[393928973,1763101831934,-557.26,0.00026888,2]
[393928977,1763101837763,-395.74596155,0.0002644,2]
[393928978,1763101837772,-500.0,0.0002644,2]
[393928979,1763101837782,-369.71738119,0.0002644,2]
[393928980,1763101837791,-500.0,0.0002644,2]
[393928981,1763101837800,-422.06389267,0.0002644,2]
[393928982,1763101837809,-500.0,0.0002644,2]
[393928983,1763101837819,-500.0,0.0002644,2]
[393928984,1763101837828,-500.0,0.0002644,2]
[393928985,1763101837838,-500.0,0.0002644,2]
[393928986,1763101837848,-552.76132891,0.0002644,2]
[393928987,1763101837856,-210.0,0.0002644,2]
[393928988,1763101837866,-2036.16709793,0.00026888,2]
[393928989,1763101837877,-500.0,0.00026971,2]
[393928990,1763101837887,-256.73,0.00026976,10]
[393928991,1763101837897,-546.4,0.00026976,10]
[393928992,1763101837906,-455.33,0.00026976,10]
[393928993,1763101837915,-2010.28721248,0.00026976,2]
[393928994,1763101837925,-1005.14360624,0.00026978,2]
[393928995,1763101837934,-552.98968313,0.00026985,2]
[393928996,1763101837945,-286.15128976,0.00026985,2]
[393928997,1763101837954,-193.01418608,0.00026985,2]
[393928998,1763101837964,-1000.0,0.00026985,2]
[393928999,1763101837974,-1000.0,0.00026985,2]
[393929000,1763101837983,-1000.0,0.00026985,2]
[393929001,1763101837994,-1000.0,0.00026985,2]
[393929002,1763101838004,-1000.0,0.00026985,2]
[393929003,1763101838014,-1000.0,0.00026985,2]
[393929004,1763101838023,-1000.0,0.00026985,2]
[393929005,1763101838032,-28740.17922898,0.00026986,2]
[393929009,1763101840171,-138.04500937,0.00026986,2]
[393929062,1763101846001,-379.44,0.00026978,10]
[393929063,1763101846011,-6219.33999992,0.00026986,2]
[393929064,1763101846022,-67264.20563914,0.00026986,2]
[393929065,1763101846071,-1349.9999975,0.00026986,2]
[393929066,1763101846688,-18659.76117378,0.00026986,2]
[393929067,1763101846697,-1000.0,0.00026988,2]
[393929068,1763101846706,-1000.0,0.00026988,2]
[393929069,1763101846715,-29049.7359818,0.00026989,2]
[393929070,1763101846724,-1000.0,0.00027021,2]
[393929071,1763101846734,-1021.13119915,0.00027021,2]
[393929072,1763101846742,-6821.9138898,0.00027203,2]
[393929073,1763101846751,-500.0,0.00027203,2]
[393929074,1763101846760,-500.0,0.00027203,2]
[393929075,1763101846769,-500.0,0.00027203,2]
[393929076,1763101846778,-500.0,0.00027203,2]
[393929077,1763101846787,-500.0,0.00027203,2]
[393929078,1763101846796,-234.96692386,0.00027203,2]
[393929079,1763101846805,-500.0,0.0002723,2]
[393929080,1763101846814,-500.0,0.0002723,2]
[393929081,1763101846823,-500.0,0.0002723,2]
[393929082,1763101846832,-500.0,0.0002723,2]
[393929083,1763101846841,-500.0,0.0002723,2]
[393929084,1763101846849,-1000.0,0.00027239,2]
[393929085,1763101846858,-500.0,0.00027258,2]
[393929086,1763101846867,-500.0,0.00027258,2]
[393929087,1763101846876,-500.0,0.00027258,2]
[393929088,1763101846887,-371.93457098,0.00027258,2]
[393929089,1763101846896,-500.0,0.00027258,2]
[393929090,1763101846904,-299.44426875,0.00027258,2]
[393929091,1763101846913,-500.0,0.00027258,2]
[393929092,1763101846922,-151.0,0.00027258,2]
[393929093,1763101846931,-200.82451781,0.00027258,2]
[393929094,1763101846939,-203.73613308,0.00027258,2]
[393929095,1763101846948,-180.52,0.00027263,2]
[393929096,1763101846957,-500.0,0.00027273,2]
[393929097,1763101846967,-500.0,0.00027273,2]
[393929098,1763101846976,-500.0,0.00027273,2]
[393929099,1763101846985,-158.77378924,0.00027285,2]
[393929100,1763101846994,-151.0,0.00027285,2]
[393929101,1763101847003,-500.0,0.00027285,2]
[393929102,1763101847012,-500.0,0.00027285,2]
[393929103,1763101847021,-500.0,0.00027285,2]
[393929104,1763101847030,-500.0,0.00027285,2]
[393929105,1763101847039,-500.0,0.00027285,2]
[393929106,1763101847049,-255.75966183,0.00027285,2]
[393929107,1763101847058,-1005.14360624,0.00027303,2]
[393929108,1763101847067,-151.0,0.00027312,2]
[393929109,1763101847076,-609.9099911,0.00027313,2]
[393929110,1763101847085,-500.0,0.00027313,2]
[393929111,1763101847094,-500.0,0.00027313,2]
[393929112,1763101847102,-500.0,0.00027313,2]
[393929113,1763101847111,-208.09288441,0.0002734,2]
[393929114,1763101847120,-500.0,0.0002734,2]
[393929115,1763101847129,-500.0,0.0002734,2]
[393929116,1763101847139,-3655.85169069,0.00027341,2]
[393929117,1763101847148,-500.0,0.00027367,2]
[393929118,1763101847157,-478.89829743,0.00027367,2]
[393929119,1763101847166,-500.0,0.00027395,2]
[393929120,1763101847175,-500.0,0.00027422,2]
[393929121,1763101847183,-500.0,0.0002745,2]
[393929122,1763101847192,-3655.85169071,0.00027458,2]
[393929123,1763101847201,-160.0,0.0002746,2]
[393929124,1763101847210,-500.0,0.00027477,2]
[393929125,1763101847219,-500.0,0.00027504,2]
[393929126,1763101847228,-220.35,0.0002751,2]
[393929127,1763101847237,-300.0,0.00027511,30]
[393929128,1763101847246,-300.0,0.00027511,30]
[393929129,1763101847255,-300.0,0.00027511,30]
[393929130,1763101847264,-300.0,0.00027511,30]
[393929131,1763101847273,-300.0,0.00027511,30]
[393929132,1763101847282,-300.0,0.00027511,30]
[393929133,1763101847290,-300.0,0.00027511,30]
[393929134,1763101847299,-300.0,0.00027511,30]
[393929135,1763101847308,-300.0,0.00027511,30]
[393929136,1763101847317,-300.0,0.00027511,30]
[393929137,1763101847327,-300.0,0.00027511,30]
[393929138,1763101847338,-300.0,0.00027511,30]
[393929139,1763101847346,-300.0,0.00027511,30]
[393929140,1763101847355,-300.0,0.00027511,30]
[393929141,1763101847364,-300.0,0.00027511,30]
[393929142,1763101847374,-600.0,0.00027525,30]
[393929143,1763101847383,-177.0,0.00027526,2]
[393929144,1763101847393,-500.0,0.00027532,2]
[393929145,1763101847402,-500.0,0.00027559,2]
[393929146,1763101847415,-1500.0,0.00027568,5]
[393929147,1763101847424,-500.0,0.00027573,5]
[393929148,1763101847433,-189.32947227,0.00027587,2]
[393929149,1763101847442,-598.80268488,0.00027821,5]